[Event "CZE National Open 2020"]
[Site "Kouty nad Desnou"]
[Date "2020.03.08"]
[Round "2.4"]
[White "Strnad, Vladimir"]
[Black "Zaza, Martin"]
[Result "1-0"]
[ECO "C41"]
[WhiteElo "1356"]
[BlackElo "1574"]
[Annotator "NA"]
[PlyCount "145"]
[EventDate "2020.03.07"]
[EventCountry "CZE"]
[SourceTitle "playchess.com"]
[Source "ChessBase"]
[SourceQuality "1"]
[TimeControl "5400+30"]

1. e4 {[%emt 0:00:00]} e5 {[%emt 0:00:00]} 2. Nf3 {[%emt 0:00:00]} d6 {[%emt 0:00:06]} 3. d4 {[%emt 0:00:00]} Nf6 {[%emt 0:00:05]} 4. Bg5 {[%emt 0:01:29]} h6 {[%emt 0:04:03]} 5. Bh4 {[%emt 0:01:35]} Be7 {[%emt 0:00:24]} 6. dxe5 {[%emt 0:01:19]} Nxe4 {[%emt 0:00:05]} 7. Bxe7 {[%emt 0:00:58]} Qxe7 {[%emt 0:00:05]} 8. exd6 {[%emt 0:00:27]} Nxd6+ {[%emt 0:00:31]} 9. Qe2 {[%emt 0:01:02]} Qxe2+ {[%emt 0:03:26]} 10. Bxe2 {[%emt 0:00:55]} O-O {[%emt 0:00:06]} 11. Nc3 {[%emt 0:00:23]} Be6 {[%emt 0:01:02]} 12. O-O-O {[%emt 0:00:33]} Nc6 {[%emt 0:01:08]} 13. Rhe1 {[%emt 0:01:57]} a6 {[%emt 0:01:21]} 14. Nd4 {[%emt 0:05:45]} Nxd4 {[%emt 0:04:30]} 15. Rxd4 {[%emt 0:02:12]} b5 {[%emt 0:00:14]} 16. Bf3 {[%emt 0:03:40]} Rab8 {[%emt 0:00:10]} 17. Nd5 {[%emt 0:03:09]} Bxd5 {[%emt 0:00:28]} 18. Bxd5 {[%emt 0:00:32]} Rfe8 {[%emt 0:00:28]} 19. Rxe8+ {[%emt 0:03:38]} Rxe8 {[%emt 0:00:05]} 20. Kd2 {[%emt 0:03:02]} c5 {[%emt 0:03:07]} 21. Rd3 {[%emt 0:07:13]} Rd8 {[%emt 0:05:05]} 22. Bf3 {[%emt 0:03:15]} Nc4+ {[%emt 0:04:31]} 23. Kc3 {[%emt 0:01:33]} Rxd3+ {[%emt 0:00:14]} 24. cxd3 {[%emt 0:00:31]} Nd6 {[%emt 0:00:03]} 25. d4 {[%emt 0:01:53]} c4 {[%emt 0:03:37]} 26. Kb4 {[%emt 0:01:18]} Kf8 {[%emt 0:00:12]} 27. Ka5 {[%emt 0:00:18]} Ke7 {[%emt 0:00:16]} 28. Kxa6 {[%emt 0:00:16]} b4 {[%emt 0:00:11]} 29. Bd1 {[%emt 0:01:59]} c3 {[%emt 0:01:08]} 30. bxc3 {[%emt 0:01:50]} bxc3 {[%emt 0:00:52]} 31. Ka5 {[%emt 0:02:26]} Nf5 {[%emt 0:03:40]} 32. Kb4 {[%emt 0:00:24]} Nxd4 {[%emt 0:00:17]} 33. Kxc3 {[%emt 0:00:15]} Nb5+ {[%emt 0:00:38]} 34. Kb4 {[%emt 0:00:14]} Na7 {[%emt 0:00:19]} 35. a4 {[%emt 0:00:18]} Kd6 {[%emt 0:00:19]} 36. Bf3 {[%emt 0:01:24]} Kc7 {[%emt 0:02:29]} 37. a5 {[%emt 0:01:37]} Nc8 {[%emt 0:07:42]} 38. a6 {[%emt 0:02:15]} Kb6 {[%emt 0:00:09]} 39. Bb7 {[%emt 0:00:13]} Nd6 {[%emt 0:00:07]} 40. Bd5 {[%emt 0:05:55]} f5 {[%emt 0:10:27]} 41. a7 {[%emt 0:04:29]} Kxa7 {[%emt 0:00:05]} 42. Kc5 {[%emt 0:00:06]} Ne8 {[%emt 0:00:06]} 43. Bf7 {[%emt 0:03:26]} Nf6 {[%emt 0:01:22]} 44. Kd4 {[%emt 0:01:01]} Ng4 {[%emt 0:01:18]} 45. f3 {[%emt 0:01:10]} Nxh2 {[%emt 0:00:08]} 46. Bc4 {[%emt 0:00:16]} f4 {[%emt 0:01:37]} 47. Ke4 {[%emt 0:02:22]} g5 {[%emt 0:00:08]} 48. Be2 {[%emt 0:00:20]} Kb6 {[%emt 0:01:05]} 49. Kf5 {[%emt 0:01:32]} Kc5 {[%emt 0:00:09]} 50. Kg6 {[%emt 0:00:06]} Kd4 {[%emt 0:02:43]} 51. Kxh6 {[%emt 0:01:58]} g4 {[%emt 0:00:12]} 52. fxg4 {[%emt 0:05:02]} Ke3 {[%emt 0:00:03]} 53. Bd1 {[%emt 0:12:22]} Kf2 {[%emt 0:00:37]} 54. g5 {[%emt 0:02:07]} Nf1 {[%emt 0:00:12]} 55. Bf3 {[%emt 0:02:02]} Ne3 {[%emt 0:03:25]} 56. g6 {[%emt 0:02:34]} Nxg2 {[%emt 0:00:07]} 57. g7 {[%emt 0:00:12]} Kxf3 {[%emt 0:00:13]} 58. g8=Q {[%emt 0:00:12]} Kf2 {[%emt 0:00:16]} 59. Qa2+ {[%emt 0:00:30]} Kg3 {[%emt 0:00:38]} 60. Kg5 {[%emt 0:01:34]} f3 {[%emt 0:00:47]} 61. Qa3 {[%emt 0:00:35]} Kf2 {[%emt 0:00:32]} 62. Kg4 {[%emt 0:00:48]} Ne3+ {[%emt 0:01:29]} 63. Kh3 {[%emt 0:00:10]} Ng2 {[%emt 0:02:03]} 64. Qb2+ {[%emt 0:00:49]} Ke1 {[%emt 0:01:41]} 65. Kg3 {[%emt 0:00:44]} Nh4 {[%emt 0:00:16]} 66. Qf2+ {[%emt 0:00:24]} Kd1 {[%emt 0:00:20]} 67. Kxh4 {[%emt 0:00:09]} Kc1 {[%emt 0:00:10]} 68. Kg3 {[%emt 0:00:08]} Kd1 {[%emt 0:00:12]} 69. Kxf3 {[%emt 0:00:12]} Kc1 {[%emt 0:00:06]} 70. Ke3 {[%emt 0:00:09]} Kb1 {[%emt 0:00:09]} 71. Kd3 {[%emt 0:00:06]} Ka1 {[%emt 0:00:04]} 72. Kc3 {[%emt 0:00:08]} Kb1 {[%emt 0:00:04]} 73. Qb2# 1-0

[Event "CZE National Open 2020"]
[Site "Kouty nad Desnou"]
[Date "2020.03.08"]
[Round "2.5"]
[White "Cizek, Jan"]
[Black "Hobza, Radek"]
[Result "1-0"]
[ECO "C03"]
[WhiteElo "1566"]
[BlackElo "1334"]
[Annotator "NA"]
[PlyCount "57"]
[EventDate "2020.03.07"]
[EventCountry "CZE"]
[SourceTitle "playchess.com"]
[Source "ChessBase"]
[SourceQuality "1"]
[TimeControl "5400+30"]

1. e4 {[%emt 0:00:03]} e6 {[%emt 0:00:00]} 2. d4 {[%emt 0:00:09]} d5 {[%emt 0:00:00]} 3. Nd2 {[%emt 0:00:08]} a6 {[%emt 0:01:16]} 4. Bd3 {[%emt 0:01:14]} c5 {[%emt 0:00:43]} 5. exd5 {[%emt 0:00:23]} exd5 {[%emt 0:00:49]} 6. Ngf3 {[%emt 0:01:03]} Nf6 {[%emt 0:01:09]} 7. O-O {[%emt 0:00:13]} cxd4 {[%emt 0:03:23]} 8. Qe2+ {[%emt 0:01:19]} Qe7 {[%emt 0:05:12]} 9. Qxe7+ {[%emt 0:00:16]} Bxe7 {[%emt 0:00:04]} 10. Nxd4 {[%emt 0:00:45]} O-O {[%emt 0:00:17]} 11. N2f3 {[%emt 0:00:41]} Nc6 {[%emt 0:02:13]} 12. Re1 {[%emt 0:00:35]} Bc5 {[%emt 0:00:43]} 13. Be3 {[%emt 0:00:31]} Nb4 {[%emt 0:05:40]} 14. Bf1 {[%emt 0:01:01]} Bg4 {[%emt 0:04:52]} 15. a3 {[%emt 0:02:00]} Bxf3 {[%emt 0:00:19]} 16. axb4 {[%emt 0:00:04]} Bxd4 {[%emt 0:00:37]} 17. Bxd4 {[%emt 0:00:07]} Be4 {[%emt 0:00:24]} 18. c3 {[%emt 0:01:29]} b5 {[%emt 0:04:33]} 19. g3 {[%emt 0:06:03]} Rfc8 {[%emt 0:07:33]} 20. Bg2 {[%emt 0:02:48]} Bd3 {[%emt 0:08:09]} 21. Bxf6 {[%emt 0:02:29]} gxf6 {[%emt 0:00:16]} 22. Bxd5 {[%emt 0:00:08]} Ra7 {[%emt 0:00:52]} 23. Re3 {[%emt 0:01:22]} Bc4 {[%emt 0:03:31]} 24. Bxc4 {[%emt 0:00:34]} bxc4 {[%emt 0:00:21]} 25. f4 {[%emt 0:02:06]} f5 {[%emt 0:02:24]} 26. Ra5 {[%emt 0:00:20]} Rd8 {[%emt 0:00:28]} 27. Kf2 {[%emt 0:00:10]} Rd3 {[%emt 0:04:50]} 28. Rxd3 {[%emt 0:00:20]} cxd3 {[%emt 0:00:06]} 29. Rd5 {[%emt 0:00:18]} 1-0

[Event "CZE National Open 2020"]
[Site "Kouty nad Desnou"]
[Date "2020.03.08"]
[Round "2.6"]
[White "Jun, Rostislav"]
[Black "Vyhnalek, Jan"]
[Result "0-1"]
[ECO "B01"]
[WhiteElo "1342"]
[BlackElo "1528"]
[Annotator "NA"]
[PlyCount "78"]
[EventDate "2020.03.07"]
[EventCountry "CZE"]
[SourceTitle "playchess.com"]
[Source "ChessBase"]
[SourceQuality "1"]
[TimeControl "5400+30"]

1. e4 {[%emt 0:00:00]} d5 {[%emt 0:00:00]} 2. exd5 {[%emt 0:02:50]} Qxd5 {[%emt 0:00:00]} 3. Nf3 {[%emt 0:06:37]} Bg4 {[%emt 0:00:44]} 4. Be2 {[%emt 0:00:49]} Nf6 {[%emt 0:00:59]} 5. Nc3 {[%emt 0:01:29]} Qa5 {[%emt 0:01:36]} 6. O-O {[%emt 0:04:33]} Nbd7 {[%emt 0:02:32]} 7. a3 {[%emt 0:01:33]} e6 {[%emt 0:01:15]} 8. b4 {[%emt 0:01:34]} Bxb4 {[%emt 0:03:44]} 9. Bb2 {[%emt 0:02:42]} Bd6 {[%emt 0:01:37]} 10. Nb5 {[%emt 0:04:00]} O-O {[%emt 0:04:20]} 11. Nxd6 {[%emt 0:01:27]} cxd6 {[%emt 0:00:42]} 12. Re1 {[%emt 0:01:05]} Rac8 {[%emt 0:01:20]} 13. Bc3 {[%emt 0:02:25]} Qc7 {[%emt 0:04:53]} 14. Ra2 {[%emt 0:01:32]} Nd5 {[%emt 0:01:17]} 15. Ba1 {[%emt 0:03:04]} Nf4 {[%emt 0:07:03]} 16. Bf1 {[%emt 0:09:22]} Qa5 {[%emt 0:10:16]} 17. Bc3 {[%emt 0:22:58]} Qd5 {[%emt 0:01:26]} 18. Rb2 {[%emt 0:01:01]} Nh3+ {[%emt 0:02:24]} 19. gxh3 {[%emt 0:01:36]} Bxf3 {[%emt 0:00:05]} 20. Bg2 {[%emt 0:03:16]} Rxc3 {[%emt 0:09:18]} 21. dxc3 {[%emt 0:02:48]} Qxd1 {[%emt 0:00:37]} 22. Rxd1 {[%emt 0:00:42]} Bxd1 {[%emt 0:00:03]} 23. Rxb7 {[%emt 0:00:17]} Nc5 {[%emt 0:00:05]} 24. Rxa7 {[%emt 0:02:06]} Bxc2 {[%emt 0:00:29]} 25. Bc6 {[%emt 0:01:31]} Rb8 {[%emt 0:00:19]} 26. f3 {[%emt 0:00:41]} g6 {[%emt 0:00:52]} 27. Kg2 {[%emt 0:00:52]} Kg7 {[%emt 0:01:13]} 28. a4 {[%emt 0:00:29]} Rb2 {[%emt 0:02:01]} 29. Kg3 {[%emt 0:00:23]} Rb3 {[%emt 0:02:07]} 30. Be8 {[%emt 0:04:53]} Rb7 {[%emt 0:00:17]} 31. Rxb7 {[%emt 0:02:11]} Nxb7 {[%emt 0:00:06]} 32. Bc6 {[%emt 0:00:28]} Na5 {[%emt 0:00:15]} 33. Bb5 {[%emt 0:00:34]} Bb3 {[%emt 0:00:12]} 34. f4 {[%emt 0:01:29]} Kf6 {[%emt 0:00:48]} 35. h4 {[%emt 0:03:01]} h5 {[%emt 0:00:28]} 36. h3 {[%emt 0:00:13]} Bc4 {[%emt 0:00:22]} 37. Bxc4 {[%emt 0:00:34]} Nxc4 {[%emt 0:00:01]} 38. Kf3 {[%emt 0:00:21]} Kf5 {[%emt 0:00:01]} 39. Ke2 {[%emt 0:01:38]} Ke4 {[%emt 0:00:51]} 0-1

[Event "CZE National Open 2020"]
[Site "Kouty nad Desnou"]
[Date "2020.03.08"]
[Round "2.7"]
[White "Steinbauer, Sebastian"]
[Black "Lukas, Ondrej"]
[Result "1/2-1/2"]
[ECO "B12"]
[WhiteElo "1527"]
[BlackElo "1304"]
[Annotator "NA"]
[PlyCount "102"]
[EventDate "2020.03.07"]
[EventCountry "CZE"]
[SourceTitle "playchess.com"]
[Source "ChessBase"]
[SourceQuality "1"]
[TimeControl "5400+30"]

1. e4 {[%emt 0:02:24]} c6 {[%emt 0:00:00]} 2. d4 {[%emt 0:00:32]} d5 {[%emt 0:00:00]} 3. e5 {[%emt 0:00:08]} c5 {[%emt 0:00:00]} 4. c3 {[%emt 0:00:23]} cxd4 {[%emt 0:00:54]} 5. cxd4 {[%emt 0:00:07]} Bf5 {[%emt 0:03:05]} 6. g4 {[%emt 0:00:19]} Bd7 {[%emt 0:00:45]} 7. Nc3 {[%emt 0:00:29]} e6 {[%emt 0:00:24]} 8. h4 {[%emt 0:01:56]} Nc6 {[%emt 0:02:22]} 9. f4 {[%emt 0:00:55]} Bb4 {[%emt 0:03:01]} 10. Nf3 {[%emt 0:02:01]} Nge7 {[%emt 0:02:14]} 11. Qc2 {[%emt 0:01:17]} Rc8 {[%emt 0:07:57]} 12. a3 {[%emt 0:02:34]} Bxc3+ {[%emt 0:00:40]} 13. bxc3 {[%emt 0:00:11]} Na5 {[%emt 0:09:22]} 14. Bd3 {[%emt 0:03:49]} Qc7 {[%emt 0:09:35]} 15. Bd2 {[%emt 0:01:03]} Nc4 {[%emt 0:01:52]} 16. h5 {[%emt 0:02:40]} Nxd2 {[%emt 0:01:27]} 17. Kxd2 {[%emt 0:00:12]} Qa5 {[%emt 0:17:55]} 18. a4 {[%emt 0:01:35]} Rc7 {[%emt 0:06:25]} 19. Nh4 {[%emt 0:01:11]} Nc8 {[%emt 0:04:52]} 20. f5 {[%emt 0:00:57]} Nb6 {[%emt 0:01:13]} 21. fxe6 {[%emt 0:04:52]} Bxe6 {[%emt 0:00:17]} 22. Nf5 {[%emt 0:01:15]} Bxf5 {[%emt 0:00:22]} 23. gxf5 {[%emt 0:00:32]} Nc4+ {[%emt 0:00:25]} 24. Ke2 {[%emt 0:02:44]} Nb6 {[%emt 0:01:53]} 25. Bb5+ {[%emt 0:00:22]} Ke7 {[%emt 0:00:40]} 26. Kd2 {[%emt 0:01:14]} Nc4+ {[%emt 0:00:31]} 27. Bxc4 {[%emt 0:00:06]} Rxc4 {[%emt 0:00:05]} 28. f6+ {[%emt 0:01:01]} gxf6 {[%emt 0:00:42]} 29. exf6+ {[%emt 0:00:08]} Kd6 {[%emt 0:01:12]} 30. Kd3 {[%emt 0:03:04]} Rhc8 {[%emt 0:01:32]} 31. Ra3 {[%emt 0:00:54]} b5 {[%emt 0:03:27]} 32. Qh2+ {[%emt 0:01:57]} Kd7 {[%emt 0:00:48]} 33. Qh3+ {[%emt 0:00:45]} Kd6 {[%emt 0:00:47]} 34. Qg3+ {[%emt 0:00:09]} Kd7 {[%emt 0:00:26]} 35. Qg4+ {[%emt 0:00:09]} Kd6 {[%emt 0:00:35]} 36. Qf4+ {[%emt 0:00:15]} Kc6 {[%emt 0:01:03]} 37. axb5+ {[%emt 0:00:32]} Qxb5 {[%emt 0:00:17]} 38. Kc2 {[%emt 0:01:40]} Rb8 {[%emt 0:03:38]} 39. Rha1 {[%emt 0:01:10]} Qb2+ {[%emt 0:00:53]} 40. Kd3 {[%emt 0:01:34]} Rb7 {[%emt 0:03:05]} 41. Qe5 {[%emt 0:00:44]} Qf2 {[%emt 0:02:27]} 42. Ra6+ {[%emt 0:00:41]} Rb6 {[%emt 0:00:13]} 43. Rxb6+ {[%emt 0:00:40]} axb6 {[%emt 0:00:21]} 44. Qe8+ {[%emt 0:00:12]} Kd6 {[%emt 0:00:17]} 45. Qe7+ {[%emt 0:17:13]} Kc6 {[%emt 0:00:08]} 46. Ra7 {[%emt 0:22:16]} Qf3+ {[%emt 0:01:35]} 47. Kd2 {[%emt 0:01:54]} Qxc3+ {[%emt 0:05:28]} 48. Ke2 {[%emt 0:01:06]} Qc2+ {[%emt 0:01:30]} 49. Kf3 {[%emt 0:00:32]} Qf5+ {[%emt 0:00:26]} 50. Ke2 {[%emt 0:01:17]} Qc2+ {[%emt 0:00:09]} 51. Kf3 {[%emt 0:00:08]} Qf5+ {[%emt 0:00:04] Ke4} 1/2-1/2

[Event "CZE National Open 2020"]
[Site "Kouty nad Desnou"]
[Date "2020.03.08"]
[Round "2.8"]
[White "Vcela, Martin"]
[Black "Cipl, Jan"]
[Result "1/2-1/2"]
[ECO "C22"]
[WhiteElo "1307"]
[BlackElo "1526"]
[Annotator "NA"]
[PlyCount "77"]
[EventDate "2020.03.07"]
[EventCountry "CZE"]
[SourceTitle "playchess.com"]
[Source "ChessBase"]
[SourceQuality "1"]
[TimeControl "5400+30"]

1. e4 {[%emt 0:00:00]} e5 {[%emt 0:00:18]} 2. d4 {[%emt 0:00:00]} exd4 {[%emt 0:01:28]} 3. Qxd4 {[%emt 0:00:00]} Nc6 {[%emt 0:00:59]} 4. Qe3 {[%emt 0:00:15]} b6 {[%emt 0:05:10]} 5. Nc3 {[%emt 0:01:33]} Bb7 {[%emt 0:01:53]} 6. Bd2 {[%emt 0:00:35]} Bc5 {[%emt 0:01:16]} 7. Qg3 {[%emt 0:01:49]} Qf6 {[%emt 0:01:30]} 8. Nf3 {[%emt 0:01:57]} Bd6 {[%emt 0:03:39]} 9. Qg5 {[%emt 0:02:43]} O-O-O {[%emt 0:06:05]} 10. O-O-O {[%emt 0:01:10]} Ne5 {[%emt 0:04:51]} 11. Qxf6 {[%emt 0:04:49]} Nxf6 {[%emt 0:01:22]} 12. Nxe5 {[%emt 0:00:29]} Bxe5 {[%emt 0:00:26]} 13. f4 {[%emt 0:00:20]} Bxc3 {[%emt 0:00:53]} 14. Bxc3 {[%emt 0:00:27]} Nxe4 {[%emt 0:00:14]} 15. Bxg7 {[%emt 0:01:15]} Rhg8 {[%emt 0:02:51]} 16. Bd4 {[%emt 0:00:14]} c5 {[%emt 0:03:06]} 17. Be3 {[%emt 0:00:23]} f5 {[%emt 0:03:05]} 18. Rg1 {[%emt 0:00:58]} Kc7 {[%emt 0:02:14]} 19. Bd3 {[%emt 0:01:02]} d5 {[%emt 0:01:41]} 20. Bxe4 {[%emt 0:00:29]} dxe4 {[%emt 0:01:54]} 21. Rxd8 {[%emt 0:00:19]} Kxd8 {[%emt 0:00:40]} 22. Kd2 {[%emt 0:00:10]} Ke7 {[%emt 0:00:24]} 23. h3 {[%emt 0:00:27]} h5 {[%emt 0:00:53]} 24. Bf2 {[%emt 0:01:02]} Ke6 {[%emt 0:04:15]} 25. Kc3 {[%emt 0:00:40]} Rd8 {[%emt 0:01:34]} 26. g4 {[%emt 0:00:53]} hxg4 {[%emt 0:02:42]} 27. hxg4 {[%emt 0:00:08]} fxg4 {[%emt 0:01:51]} 28. Rxg4 {[%emt 0:00:23]} Rh8 {[%emt 0:00:34]} 29. Rg7 {[%emt 0:00:27]} Rh3+ {[%emt 0:01:01]} 30. Kd2 {[%emt 0:00:23]} Rh2 {[%emt 0:05:20]} 31. Ke3 {[%emt 0:02:30]} Rh3+ {[%emt 0:01:03]} 32. Rg3 {[%emt 0:01:22]} Rxg3+ {[%emt 0:01:59]} 33. Bxg3 {[%emt 0:00:06]} Kf5 {[%emt 0:00:20]} 34. Bh4 {[%emt 0:00:30]} Bd5 {[%emt 0:01:01]} 35. a3 {[%emt 0:00:19]} Bc4 {[%emt 0:02:16]} 36. Bd8 {[%emt 0:02:25]} Bf1 {[%emt 0:00:49]} 37. c3 {[%emt 0:01:10]} b5 {[%emt 0:00:43]} 38. b4 {[%emt 0:01:08]} c4 {[%emt 0:02:02]} 39. Bc7 {[%emt 0:00:29]} 1/2-1/2

[Event "CZE National Open 2020"]
[Site "Kouty nad Desnou"]
[Date "2020.03.08"]
[Round "2.9"]
[White "Cerny, Michael"]
[Black "Martirosyan, Artyom"]
[Result "1/2-1/2"]
[ECO "A16"]
[WhiteElo "1513"]
[BlackElo "1260"]
[Annotator "NA"]
[PlyCount "75"]
[EventDate "2020.03.07"]
[EventCountry "CZE"]
[SourceTitle "playchess.com"]
[Source "ChessBase"]
[SourceQuality "1"]
[TimeControl "5400+30"]

1. c4 {[%emt 0:00:00]} Nf6 {[%emt 0:02:08]} 2. Nc3 {[%emt 0:00:00]} g6 {[%emt 0:00:13]} 3. e4 {[%emt 0:00:26]} e5 {[%emt 0:00:40]} 4. g3 {[%emt 0:10:18]} c6 {[%emt 0:03:00]} 5. Bg2 {[%emt 0:00:51]} d6 {[%emt 0:03:55]} 6. Nge2 {[%emt 0:02:35]} Be6 {[%emt 0:02:50]} 7. b3 {[%emt 0:03:03]} c5 {[%emt 0:01:22]} 8. O-O {[%emt 0:01:15]} Bg7 {[%emt 0:00:34]} 9. f4 {[%emt 0:02:57]} Qd7 {[%emt 0:01:29]} 10. Ba3 {[%emt 0:03:40]} Nc6 {[%emt 0:01:09]} 11. fxe5 {[%emt 0:02:25]} Nxe5 {[%emt 0:01:28]} 12. d4 {[%emt 0:01:33]} cxd4 {[%emt 0:02:54]} 13. Nxd4 {[%emt 0:00:29]} Bh3 {[%emt 0:02:01]} 14. Ndb5 {[%emt 0:00:51]} Bxg2 {[%emt 0:00:37]} 15. Nxd6+ {[%emt 0:00:18]} Kf8 {[%emt 0:01:09]} 16. Nf5+ {[%emt 0:02:57]} Ke8 {[%emt 0:03:49]} 17. Nxg7+ {[%emt 0:00:20]} Kd8 {[%emt 0:00:16]} 18. Rxf6 {[%emt 0:01:41]} Kc8 {[%emt 0:03:57]} 19. Qxd7+ {[%emt 0:01:07]} Nxd7 {[%emt 0:00:12]} 20. Rxf7 {[%emt 0:00:17]} Bh3 {[%emt 0:00:43]} 21. Rd1 {[%emt 0:01:52]} Ne5 {[%emt 0:00:45]} 22. Rf6 {[%emt 0:04:49]} Ng4 {[%emt 0:05:41]} 23. Rf8+ {[%emt 0:01:01]} Rxf8 {[%emt 0:00:17]} 24. Bxf8 {[%emt 0:00:07]} Ne5 {[%emt 0:00:44]} 25. Be7 {[%emt 0:05:25]} b6 {[%emt 0:01:21]} 26. Ne8 {[%emt 0:01:59]} Kb7 {[%emt 0:01:03]} 27. Nd6+ {[%emt 0:01:10]} Kc6 {[%emt 0:00:47]} 28. b4 {[%emt 0:03:03]} a6 {[%emt 0:02:09]} 29. Nd5 {[%emt 0:06:40]} Bg4 {[%emt 0:01:49]} 30. Rc1 {[%emt 0:01:08]} Ra7 {[%emt 0:01:42]} 31. b5+ {[%emt 0:01:17]} Kd7 {[%emt 0:00:45]} 32. Nxb6+ {[%emt 0:00:57]} Ke6 {[%emt 0:01:33]} 33. Nbc8 {[%emt 0:00:35]} Ra8 {[%emt 0:03:28]} 34. b6 {[%emt 0:11:45]} Nd3 {[%emt 0:01:34]} 35. b7 {[%emt 0:04:54]} Rb8 {[%emt 0:00:34]} 36. Rb1 {[%emt 0:03:00]} Ke5 {[%emt 0:02:20]} 37. Na7 {[%emt 0:01:15]} Bd7 {[%emt 0:00:43]} 38. Ndc8 {[%emt 0:03:12]} 1/2-1/2

[Event "CZE National Open 2020"]
[Site "Kouty nad Desnou"]
[Date "2020.03.09"]
[Round "3.2"]
[White "Klabenes, Petr"]
[Black "Sichrovsky, Tomas"]
[Result "1/2-1/2"]
[ECO "B10"]
[WhiteElo "1672"]
[BlackElo "1470"]
[Annotator "NA"]
[PlyCount "82"]
[EventDate "2020.03.07"]
[EventCountry "CZE"]
[SourceTitle "playchess.com"]
[Source "ChessBase"]
[SourceQuality "1"]
[TimeControl "5400+30"]

1. e4 {[%emt 0:00:00]} c6 {[%emt 0:00:00]} 2. f4 {[%emt 0:02:29]} d5 {[%emt 0:01:03]} 3. e5 {[%emt 0:00:29]} Bf5 {[%emt 0:00:37]} 4. d4 {[%emt 0:02:04]} e6 {[%emt 0:00:46]} 5. Bd3 {[%emt 0:00:36]} Ne7 {[%emt 0:01:52]} 6. Nf3 {[%emt 0:01:20]} Bxd3 {[%emt 0:00:49]} 7. Qxd3 {[%emt 0:00:17]} Nd7 {[%emt 0:00:36]} 8. O-O {[%emt 0:01:05]} Qb6 {[%emt 0:00:58]} 9. b3 {[%emt 0:02:37]} c5 {[%emt 0:01:16]} 10. c3 {[%emt 0:01:12]} O-O-O {[%emt 0:03:10]} 11. Na3 {[%emt 0:03:44]} h6 {[%emt 0:06:35]} 12. Be3 {[%emt 0:02:24]} Nf5 {[%emt 0:01:23]} 13. Nc2 {[%emt 0:01:07]} Nxe3 {[%emt 0:00:46]} 14. Nxe3 {[%emt 0:01:00]} Be7 {[%emt 0:00:41]} 15. Kh1 {[%emt 0:00:54]} Rdg8 {[%emt 0:02:02]} 16. f5 {[%emt 0:01:18]} g5 {[%emt 0:03:43]} 17. f6 {[%emt 0:00:49]} Bf8 {[%emt 0:00:01]} 18. Rac1 {[%emt 0:00:34]} Kb8 {[%emt 0:01:26]} 19. Qc2 {[%emt 0:02:52]} g4 {[%emt 0:03:25]} 20. Nh4 {[%emt 0:00:58]} cxd4 {[%emt 0:02:04]} 21. cxd4 {[%emt 0:00:16]} Ba3 {[%emt 0:01:08]} 22. Rcd1 {[%emt 0:02:14]} Rc8 {[%emt 0:02:57]} 23. Qe2 {[%emt 0:02:54]} h5 {[%emt 0:00:49]} 24. Qf2 {[%emt 0:05:38]} Bf8 {[%emt 0:10:25]} 25. Qg3 {[%emt 0:03:37]} Ka8 {[%emt 0:07:53]} 26. Qf2 {[%emt 0:10:26]} Bh6 {[%emt 0:01:18]} 27. Nhf5 {[%emt 0:04:08]} Bxe3 {[%emt 0:02:26]} 28. Nxe3 {[%emt 0:00:47]} Rc3 {[%emt 0:01:21]} 29. Qd2 {[%emt 0:04:34]} Rhc8 {[%emt 0:00:56]} 30. h3 {[%emt 0:04:27]} gxh3 {[%emt 0:01:33]} 31. gxh3 {[%emt 0:03:42]} R3c7 {[%emt 0:05:32]} 32. Qe2 {[%emt 0:01:55]} Rh8 {[%emt 0:01:55]} 33. Rg1 {[%emt 0:01:02]} Nf8 {[%emt 0:01:29]} 34. Rg5 {[%emt 0:00:58]} h4 {[%emt 0:04:57]} 35. Rh5 {[%emt 0:00:26]} Rxh5 {[%emt 0:00:20]} 36. Qxh5 {[%emt 0:00:11]} Ng6 {[%emt 0:00:11]} 37. Qh7 {[%emt 0:01:06]} a5 {[%emt 0:02:00]} 38. Ng4 {[%emt 0:04:40]} Qb5 {[%emt 0:01:45]} 39. Qg8+ {[%emt 0:03:08]} Ka7 {[%emt 0:00:34]} 40. Qd8 {[%emt 0:00:44]} Qe2 {[%emt 0:02:19]} 41. Qxc7 {[%emt 0:01:07]} Qxd1+ {[%emt 0:00:03]} 1/2-1/2

[Event "CZE National Open 2020"]
[Site "Kouty nad Desnou"]
[Date "2020.03.09"]
[Round "3.3"]
[White "Hrbek, Jachym"]
[Black "Svacina, Tobias"]
[Result "1-0"]
[ECO "C34"]
[WhiteElo "1433"]
[BlackElo "1601"]
[Annotator "NA RC"]
[PlyCount "29"]
[EventDate "2020.03.07"]
[EventCountry "CZE"]
[SourceTitle "playchess.com"]
[Source "ChessBase"]
[SourceQuality "1"]
[TimeControl "5400+30"]

1. e4 {[%emt 0:00:00]} e5 {[%emt 0:00:00]} 2. f4 {[%emt 0:01:22]} exf4 {[%emt 0:00:21]} 3. Nf3 {[%emt 0:00:12]} h6 {[%emt 0:00:27]} 4. Bc4 {[%emt 0:00:30]} d6 {[%emt 0:00:24]} 5. d4 {[%emt 0:04:23]} g5 {[%emt 0:00:56]} 6. O-O {[%emt 0:00:52]} Bg7 {[%emt 0:01:39]} 7. g3 {[%emt 0:04:53]} Bh3 {[%emt 0:12:02]} 8. Rf2 {[%emt 0:00:20]} fxg3 {[%emt 0:00:57]} 9. Bxf7+ {[%emt 0:11:47]} Kxf7 {[%emt 0:50:23]} 10. Ne5+ {[%emt 0:00:16]} Ke6 {[%emt 0:00:07]} 11. d5+ {[%emt 0:00:30]} Kxe5 {[%emt 0:00:08]} 12. hxg3 {[%emt 0:00:33]} Ne7 {[%emt 0:00:22]} 13. b3 {[%emt 0:00:55]} Kxe4 {[%emt 0:00:34]} 14. Qd3+ {[%emt 0:00:16]} Ke5 {[%emt 0:00:02]} 15. Bb2# {[%emt 0:00:07]} 1-0